Cogmind - Beta 13 @@@ ROGUE MODE // 2024.07.03 @ 22:30:20 Player: Minty Result: Destroyed by 78-EZR(R) with Subdweller Beam Cannon Performance ------------- Evolutions (0) 0 Regions Visited (3) 600 Robots Destroyed (14) 70 Value Destroyed (429) 429 Prototype IDs (2) 40 Alien Tech Used (0) 0 Bonus (90) 90 TOTAL SCORE: 1229 Bonus ------- Follower Combat Kills 90 Cogmind --------- Core Integrity 0/250 Matter 277/300 Energy 3/100 System Corruption 0% Temperature Cool (9) Movement Rolling (95) Location -10/Subcaves Parts ------- > --- POWER (1) -------- (None) > --- PROPULSION (2) --- Wheel Subdweller Monowheel > --- UTILITY (2) ------ Targeting Computer > --- WEAPON (2) ------- Riot Gun Slug Cannon > --- INVENTORY (5) ---- Makeshift Flight Unit Small Storage Unit Makeshift System Restoration Module Beam Cannon Peak State ------------ > --- POWER ------------ Subdweller Power Source > --- PROPULSION ------- Compact Wheel Subdweller Monowheel > --- UTILITY ---------- Small Storage Unit Targeting Computer > --- WEAPON ----------- Beam Cannon Slug Cannon > --- INVENTORY -------- Ion Engine Compact Wheel Sensor Array Makeshift System Restoration Module Tractor Beam EM Pulse Gun Light Assault Rifle [Rating: 13] Favorites ----------- Power Ion Engine Engine Ion Engine Propulsion Compact Wheel Leg Aluminum Leg Wheel Compact Wheel Utility Small Storage Unit Device Sensor Array Storage Small Storage Unit Processor Targeting Computer Weapon Beam Cannon Energy Gun EM Pulse Gun Energy Cannon Beam Cannon Ballistic Gun Light Assault Rifle Ballistic Cannon Slug Cannon Special Weapon Mining Laser Build | -11 -10 -10 -10 ------- Run | Yrd Mat Min Sub Slots Evolved . | . . . . Power . | . . . . Propulsion . | . . . . Utility . | . . . . Weapon . | . . . . Parts Attached 27 | . 7 1 19 Power 3 | . 1 . 2 Engine 3 | . 1 . 2 Core . | . . . . Reactor . | . . . . Propulsion 9 | . 3 . 6 Treads . | . . . . Leg 1 | . 1 . . Wheel 8 | . 2 . 6 Hover . | . . . . Flight . | . . . . Utility 6 | . 1 . 5 Device 1 | . 1 . . Storage 4 | . . . 4 Processor 1 | . . . 1 Hackware . | . . . . Protection . | . . . . Artifact . | . . . . Weapon 9 | . 2 1 6 Energy Gun 5 | . 2 . 3 Energy Cannon 1 | . . . 1 Ballistic Gun . | . . . . Ballistic Cannon 2 | . . . 2 Launcher . | . . . . Special Weapon 1 | . . 1 . Impact Weapon . | . . . . Slashing Weapon . | . . . . Piercing Weapon . | . . . . Special Melee Weapon . | . . . . Unidentified Prototypes . | . . . . Parts Lost 4 | . 1 . 3 Power 1 | . . . 1 Propulsion 1 | . . . 1 Utility . | . . . . Weapon 2 | . 1 . 1 Highest Loss Streak 2 | . 1 . 2 To Critical Strikes . | . . . . Average Slot Usage (%) 89 | . 84 85 93 Engine 13 | . 14 14 13 Leg 10 | . 26 . . Wheel 17 | . 1 28 28 Device 6 | . 10 14 1 Storage 12 | . 14 14 12 Processor 4 | . . . 8 Energy Gun 7 | . 12 5 4 Energy Cannon 6 | . . . 12 Ballistic Gun 2 | . 4 . . Ballistic Cannon 5 | . . . 10 Naked Turns . | . . . . Heaviest Build 215 | 13 14 13 215 Greatest Support 36 | 20 32 32 36 Greatest Overweight (x) 6 | . . . 6 Average Overweight (x) . | . . . . Largest Inventory Capacity 35 | . 8 8 35 Average Capacity 11 | . 8 8 14 Most Carried 13 | . 8 8 13 Average Carried 7 | . 7 8 7 Final Capacity 8 | 8 8 8 5 Final Carried 8 | 6 8 8 4 Class Distribution -------------------- 85% | Mutant 14% | Hauler-Mutant Dominant Class ---------------- Mutant | -10/Materials Mutant | -10/Mines Mutant | -10/Subcaves Resources | -11 -10 -10 -10 ----------- Run | Yrd Mat Min Sub Matter Collected 495 | 200 59 . 236 Remotely . | . . . . Salvage Created 558 | . 433 . 125 Parts 34 | . 28 . 6 Haulers Intercepted . | . . . . Recyclers Shooed 1 | . 1 . . Parts Field Recycled . | . . . . Retrieved Matter . | . . . . Parts Self-Destructed 9 | . . . 9 Prevented . | . . . . Kills | -11 -10 -10 -10 ------- Run | Yrd Mat Min Sub Combat Hostiles Destroyed 11 | . 9 . 2 Guns 9 | . 9 . . Cannons 2 | . . . 2 Classes Destroyed 6 | . 4 . 2 Worker 1 | . 1 . . Operator 1 | . 1 . . Watcher 1 | . 1 . . Grunt 9 | . 9 . . Cobbler 1 | . . . 1 Subdweller 2 | . . . 2 Best Kill Streak 4 | . 4 . 1 Combat Bots Only 4 | . 4 . 1 Max Kills in Single Turn 1 | . 1 . 1 Gunslinging . | . . . . Exploded . | . . . . Melee . | . . . . Uniques/NPCs Destroyed . | . . . . Combat | -11 -10 -10 -10 -------- Run | Yrd Mat Min Sub Hostile Shots Fired 65 | . 49 . 16 Missed 18 | . 14 . 4 Damage Taken 760 | . 465 . 295 Core 263 | . 141 . 122 Absorbed by Shields . | . . . . Core Remaining (%) 100 | 100 . . . Volleys Fired 68 | . 45 5 18 Largest 2 | . 2 1 2 Hottest 110 | . 60 100 110 Shots Fired 100 | . 59 5 36 Gun 71 | . 59 . 12 Cannon 24 | . . . 24 Launcher . | . . . . Special 5 | . . 5 . Kinetic 23 | . 14 . 9 Thermal 26 | . . 5 21 Explosive . | . . . . Electromagnetic 51 | . 45 . 6 Robot Hit Streak 10 | . 10 . 8 Robot Miss Streak 4 | . 2 . 4 Penetration Max . | . . . . Secondary Targets 2 | . 2 . . Max Gunslinging Chain 1 | . 1 . . Shots Hit Robots 64 | . 41 . 23 Core Hits 28 | . 19 . 9 Critical Kills . | . . . . Critical Parts Destroyed . | . . . . Critical Strikes 2 | . 2 . . Corrupt 2 | . 2 . . Melee Attacks . | . . . . Impact . | . . . . Slashing . | . . . . Piercing . | . . . . Sneak Attacks . | . . . . Combat Hostiles . | . . . . Follow-up Attacks . | . . . . Damage Inflicted 925 | . 583 . 342 Guns 634 | . 538 . 96 Cannons 246 | . . . 246 Explosions 45 | . 45 . . Melee . | . . . . Ramming . | . . . . Kinetic 181 | . 72 . 109 Thermal 219 | . 45 . 174 Explosive . | . . . . Electromagnetic 525 | . 466 . 59 Impact . | . . . . Slashing . | . . . . Piercing . | . . . . Highest Corruption . | . . . . Average Corruption . | . . . . Corruption Purged . | . . . . Corruption Blocked . | . . . . Overload Shots . | . . . . Overflow Damage 11 | . 11 . . Projectiles . | . . . . Explosions 11 | . 11 . . Melee . | . . . . Knockbacks 1 | . . . 1 Impact . | . . . . Kinetic 1 | . . . 1 Secondary . | . . . . Self-Inflicted Damage 75 | . 75 . . Shots 2 | . 2 . . Rammed . | . . . . Targets Rammed . | . . . . Kicked . | . . . . Crushed . | . . . . Highest Temperature 108 | . 108 60 . Average Temperature 41 | . 42 39 . Received Heat Transfer 276 | . 210 . 66 Siege Activations . | . . . . Robots Corrupted . | . . . . Combat Hostiles . | . . . . Parts Fried 1 | . 1 . . Impact Corruptions . | . . . . Robots Melted . | . . . . Combat Hostiles . | . . . . Parts Melted 1 | . 1 . . Heat Transferred 507 | . 100 . 407 Parts Sabotaged . | . . . . Parts Stolen . | . . . . Parts Stripped . | . . . . Power Chain Reactions 2 | . 2 . . Alert | -11 -10 -10 -10 ------- Run | Yrd Mat Min Sub Peak Influence 315 | . 315 122 . Initial 122 | . . 122 . Average 136 | . 138 122 . Maximum Alert Level 1 | . 1 . . Low Security (%) 76 | . 73 100 . Level 1 23 | . 26 . . Level 2 . | . . . . Level 3 . | . . . . Level 4 . | . . . . Level 5 . | . . . . High Security . | . . . . Max Security . | . . . . Squads Dispatched 3 | . 3 . . Investigation 3 | . 3 . . Extermination . | . . . . Reinforcement . | . . . . Assault . | . . . . Garrison . | . . . . Intercept . | . . . . Searches Triggered . | . . . . Construction Impeded . | . . . . Haulers Reinforced . | . . . . Active Scanning Responses . | . . . . Cargo Convoy Interrupts . | . . . . Stealth | -11 -10 -10 -10 --------- Run | Yrd Mat Min Sub Distress Signals . | . . . . Communications Jammed . | . . . . Distress Signals . | . . . . Times Spotted 20 | . 14 . 6 Peak Tracking Total 4 | . 4 . 2 Tactical Retreats 3 | . 3 . . Traps | -11 -10 -10 -10 ------- Run | Yrd Mat Min Sub Traps Triggered 2 | . 2 . . Indirectly . | . . . . Trap Hack Attempts . | . . . . Triggered . | . . . . Disarmed . | . . . . Reprogrammed . | . . . . Reused . | . . . . Traps Extracted . | . . . . Installed . | . . . . Triggered . | . . . . Machines | -11 -10 -10 -10 ---------- Run | Yrd Mat Min Sub Machines Disabled 1 | . 1 . . Max in Single Turn 1 | . 1 . . Machines Repaired . | . . . . Machines Dismantled . | . . . . Machines Sabotaged . | . . . . Overloaded Fab Kills . | . . . . Hacking | -11 -10 -10 -10 --------- Run | Yrd Mat Min Sub Machines Accessed 4 | . 4 . . Terminals 4 | . 4 . . Fabricators . | . . . . Repair Stations . | . . . . Recycling Units . | . . . . Scanalyzers . | . . . . Garrison Access . | . . . . Total Hacks 12 | . 12 . . Successful 4 | . 4 . . Failed 8 | . 8 . . Catastrophic 2 | . 2 . . Database Lockouts . | . . . . Manual 4 | . 4 . . Terminals 12 | . 12 . . Fabricators . | . . . . Repair Stations . | . . . . Recycling Units . | . . . . Scanalyzers . | . . . . Garrison Access . | . . . . Terminal Hacks 3 | . 3 . . Robot Analysis 1 | . 1 . . Prototype ID Bank 1 | . 1 . . Locate Traps 1 | . 1 . . Fabricator Hacks . | . . . . Repair Station Hacks . | . . . . Recycling Unit Hacks . | . . . . Scanalyzer . | . . . . Garrison Access Hacks . | . . . . Unauthorized Hacks 1 | . 1 . . Terminals 1 | . 1 . . Botnet 1 | . 1 . . Fabricators . | . . . . Repair Stations . | . . . . Recycling Units . | . . . . Scanalyzers . | . . . . Garrison Access . | . . . . Data Cores Recovered . | . . . . Used . | . . . . Hacking Detections 4 | . 4 . . Full Trace Events 2 | . 2 . . Feedback Events . | . . . . Feedback Blocked . | . . . . Robot Schematics Acquired . | . . . . Robots Built . | . . . . Authchips . | . . . . Time . | . . . . Total Robot Build Rating . | . . . . Part Schematics Acquired . | . . . . Parts Built . | . . . . Authchips . | . . . . Time . | . . . . Total Part Build Rating . | . . . . Parts Repaired . | . . . . Time . | . . . . Parts Recycled . | . . . . Recycled Matter . | . . . . Retrieved Matter . | . . . . Retrieved Components . | . . . . Parts Scanalyzed . | . . . . Part Schematics Acquired . | . . . . Parts Damaged . | . . . . Bothacking | -11 -10 -10 -10 ------------ Run | Yrd Mat Min Sub Used RIF Installer . | . . . . Robots Hacked . | . . . . Non-combat . | . . . . Combat . | . . . . Robot Hacks Applied . | . . . . Relay Couplers Released . | . . . . Fabnet Peak Effective % . | . . . . Robots Rewired . | . . . . Allies Hacked . | . . . . Hacks Repelled . | . . . . Allies | -11 -10 -10 -10 -------- Run | Yrd Mat Min Sub Total Allies 3 | . . 3 . Largest Group 3 | . . 3 3 Highest-Rated Group 40 | . . 40 40 Highest-Rated Ally 16 | . . 16 16 Total Orders . | . . . . Ally Attacks 35 | . . . 35 Total Damage 366 | . . . 366 Kills 3 | . . . 3 Allies Corrupted . | . . . . Allies Melted . | . . . . Intel | -11 -10 -10 -10 ------- Run | Yrd Mat Min Sub Robot Analysis Total 1 | . 1 . . Derelict Logs Recovered . | . . . . Drone Launches . | . . . . Drone Recoveries . | . . . . Exploration | -11 -10 -10 -10 ------------- Run | Yrd Mat Min Sub Turns Passed 913 | . 372 56 485 Spaces Moved 599 | 1 212 25 361 Core . | . . . . Treads . | . . . . Legs 208 | 1 207 . . Wheels 391 | . 5 25 361 Hover . | . . . . Flight . | . . . . Fastest Speed 90 | 120 100 100 90 Average Speed 110 | 120 119 100 106 Slowest Speed 190 | 120 120 100 190 Overloaded Moves . | . . . . Propulsion Burnouts . | . . . . Robots Hopped . | . . . . Cave-ins Triggered . | . . . . Exploration Rate (%) 18 | 2 34 11 25 Regions Visited 3 Branch Regions 2 Pre-discovered Areas . | . . . . Known Exits Taken . | . . . . Unknown Exits Taken 3 | 1 1 1 . Scrap Searched 4 | . . . 4 Spaces Dug . | . . . . Terrain Destroyed 5 | . 2 1 2 Melee . | . . . . Projectile 3 | . . 1 2 AOE 2 | . 2 . . Terrain Rammed . | . . . . Walls Destroyed . | . . . . Machines Disabled . | . . . . Actions | -11 -10 -10 -10 --------- Run | Yrd Mat Min Sub Total 741 | . 274 40 427 Wait 13 | . 2 10 1 Move 596 | . 211 24 361 Hop . | . . . . Pick Up 16 | . 4 . 12 Fast Attach 8 | . 2 . 6 Attach 7 | . 2 . 5 Detach 4 | . 1 . 3 Swap 12 | . 3 1 8 Drop 17 | . 4 . 13 Fire 68 | . 45 5 18 Melee . | . . . . Ram . | . . . . Kick . | . . . . Crush . | . . . . Escape Stasis . | . . . . Rewire . | . . . . Trap . | . . . . Miscellaneous . | . . . . Route ------- -11/Scrapyard -10/Materials (discovered 2 exits: [*Mat] / [*Min]) -10/Mines -10/Subcaves History --------- Turn | Location | Event 1 | -11/Scrapyard | Discovered new exit (range 0) 1 | -11/Scrapyard | Entered Materials 141 | -10/Materials | Discovered new exit (range 15) 297 | -10/Materials | Discovered new exit (range 10) 326 | -10/Materials | Core integrity fell below 50% 327 | -10/Materials | Build established: Mutant 373 | -10/Materials | Entered Mines 375 | -10/Mines | Assisted by bots powering up and referring to "LRC-V3" 413 | -10/Mines | Discovered new exit (range 4) 429 | -10/Mines | Entered Subcaves 429 | -10/Subcaves | Accompanied by 3 allies 481 | -10/Subcaves | Shifting Twisted Machinery released Slug Cannon 906 | -10/Subcaves | Core integrity fell below 20% 914 | -10/Subcaves | Destroyed by 78-EZR(R) with Subdweller Beam Cannon Last Messages --------------- 00859_ Searching scrap... 00859_ Found Mak. Flight Unit. 00859_ Found Riot Gun. 00859_ Found 22 Matter. 00860_ Acquired 22 matter. 00860_ Searching scrap... 00860_ Found Riot Gun. 00860_ Found Sub. Machine Gun. 00860_ Found 17 Matter. 00861_ Acquired 17 matter. 00864_ Acquired Mak. Flight Unit. 00865_ Dropped Sub. Optics. 00865_ Dropped Med. Laser. 00866_ Dropped Lgt. Assault Rifle. 00866_ Dropped Tractor Beam. 00870_ Dropped EM Pulse Gun. 00872_ Acquired Riot Gun. 00906_ Ion Engine destroyed. 00909_ O3-LNO(R) destroyed. 00912_ Riot Gun destroyed. Map ----- +----------------------------------------------------+ | ?????????????????????????????????????????????????? | | ?????????????????????????????????????????????????? | | ?????????????????????????????????????????????????? | | ?????????????????????????????????????????????????? | | ????###??????????????????????????????????????????? | | ????#!####???????????????????????????????????????? | | ???##/ [[#???????????????????????????????????????? | | ???#&! "##???????????????????????????????????????? | | ???#&*###????????????????????????????????????????? | | ???#"[[ ####?????????????????????????????????????? | | ???###!## #?????????????????????????????????????? | | ???##" ##????????????????????????????????????? | | ???# #????????????????????????????????????? | | ???# ##????????????????????????????????????? | | ???## # ##???###????##?# ??????????????????????? | | ##### ### #??### ##### ## ?????????????????????? | | ## # #### ## """" ?????????????????????? | | & # " " ?????????????????????? | | &%& " " #?##?????????????????? | | ### ## &# # "###????""##????????????????? | | #?############ ##????""""" #????????????? | | #????????????##### g ##?## """ #????????????? | | #????????????????# g ## " " #???????????? | | #????????????????# %R #???????????? | | ?????????????????# = ## #???????????? | | ????????????????# ## ##@##?????????????????????? | | ????????????????###########??????????????????????? | | ?????????????????????????????????????????????????? | | ?????????????????????????????????????????????????? | | ?????????????????????????????????????????????????? | | ?????????????????????????????????????????????????? | | ?????????????????????????????????????????????????? | | ?????????????????????????????????????????????????? | | ?????????????????????????????????????????????????? | | ?????????????????????????????????????????????????? | | ?????????????????????????????????????????????????? | | ?????????????????????????????????????????????????? | | ?????????????????????????????????????????????????? | | ?????????????????????????????????????????????????? | | ?????????????????????????????????????????????????? | | ?????????????????????????????????????????????????? | | ?????????????????????????????????????????????????? | | ?????????????????????????????????????????????????? | | ?????????????????????????????????????????????????? | | ?????????????????????????????????????????????????? | | ?????????????????????????????????????????????????? | | ?????????????????????????????????????????????????? | | ?????????????????????????????????????????????????? | | ?????????????????????????????????????????????????? | | ?????????????????????????????????????????????????? | +----------------------------------------------------+ Best States ------------- Heat Dissipation 25 Energy Generation 15 Energy Capacity 250 Matter Stores 300 Matter Capacity 300 Sight Range 16 Robot Scan Range 14 Terrain Scan Density 10 Evasion (%) 55 Targeting Accuracy 5 Item Schematics ----------------- None Robot Schematics ------------------ None Fabricated ------------ Nothing Alien Tech Used ----------------- None Achievements -------------- None Challenges ------------ None Game ------ Seed FluxGuidanceMaul Manual? 0 Play Time 00:08:47 Cumulative 781.8 hours Start 2024.07.03 @ 22:24:04 End 2024.07.03 @ 22:30:20 Sessions 1 Manual Loads 0 Difficulty Rogue Special Mode None Game No. 894 Rogue 616 Adventurer 124 Explorer 154 Win Type - Total 31 Types 25/0/4/1/0/0/0/1/0 Lore% 84 Gallery% 92 Achievement% 77 Wizard Run 0 Options --------- Layout 0 ASCII 0 Keyboard 1 Movement Numpad Keybinds 0 Fullscreen 2 Font 18/Terminus Map View 76x50 Zoom Use 0% Tactical HUD 1 Map Filters NONE Filters NONE Steam 1 RUN: 7ddaec39-1539-4986-8ec9-a874c98e7a64